[Event "Titled Tuesday Blitz July 20 2021"]
[White "Gontcharov, Vladislav"]
[Black "Golubenko, Valentina"]
[WhiteFideId "4123492"]
[BlackFideId "4501993"]
[WhiteElo "2503"]
[BlackElo "2164"]
[Result "1-0"]
[Round "08"]
[TimeControl "180+1"]
[Date "2021.07.21"]
[WhiteClock "0:00:26"]
[BlackClock "0:00:02"]

1. e4 {[%clk 0:03:00]}  e6 {[%clk 0:03:00]} 2. d4 {[%clk 0:02:59]}  d5 {[%clk 0:03:00]} 3. Nd2 {[%clk 0:02:59]}  c5 {[%clk 0:02:59]} 4. exd5 {[%clk 0:02:56]}  exd5 {[%clk 0:02:58]} 5. Ngf3 {[%clk 0:02:54]}  Nf6 {[%clk 0:02:58]} 6. Bb5+ {[%clk 0:02:48]}  Nc6 {[%clk 0:02:57]} 7. O-O {[%clk 0:02:47]}  Be7 {[%clk 0:02:53]} 8. dxc5 {[%clk 0:02:46]}  O-O {[%clk 0:02:47]} 9. Nb3 {[%clk 0:02:41]}  Ne4 {[%clk 0:02:44]} 10. Be3 {[%clk 0:02:34]}  Bg4 {[%clk 0:02:41]} 11. Be2 {[%clk 0:02:33]}  Rc8 {[%clk 0:02:37]} 12. c3 {[%clk 0:02:24]}  a5 {[%clk 0:02:07]} 13. a4 {[%clk 0:02:10]}  Qd7 {[%clk 0:01:56]} 14. Nfd2 {[%clk 0:01:58]}  Bxe2 {[%clk 0:01:49]} 15. Qxe2 {[%clk 0:01:55]}  Rfe8 {[%clk 0:01:38]} 16. Rfd1 {[%clk 0:01:39]}  Qf5 {[%clk 0:01:29]} 17. Qb5 {[%clk 0:01:28]}  Bg5 {[%clk 0:01:07]} 18. Nxe4 {[%clk 0:01:27]}  Bxe3 {[%clk 0:00:42]} 19. Nd6 {[%clk 0:01:26]}  Qxf2+ {[%clk 0:00:42]} 20. Kh1 {[%clk 0:01:26]}  Qh4 {[%clk 0:00:34]} 21. g3 {[%clk 0:01:13]}  Qg4 {[%clk 0:00:30]} 22. Qf1 {[%clk 0:01:12]}  Re5 {[%clk 0:00:19]} 23. Nxc8 {[%clk 0:00:49]}  Rf5 {[%clk 0:00:16]} 24. Qg2 {[%clk 0:00:44]}  Rf2 {[%clk 0:00:14]} 25. Qxd5 {[%clk 0:00:43]}  Qxc8 {[%clk 0:00:11]} 26. Rf1 {[%clk 0:00:41]}  h6 {[%clk 0:00:06]} 27. Rxf2 {[%clk 0:00:39]}  Bxf2 {[%clk 0:00:06]} 28. Rf1 {[%clk 0:00:38]}  Be3 {[%clk 0:00:05]} 29. Qxf7+ {[%clk 0:00:37]}  Kh7 {[%clk 0:00:05]} 30. Qf5+ {[%clk 0:00:36]}  Qxf5 {[%clk 0:00:05]} 31. Rxf5 {[%clk 0:00:37]}  Bg5 {[%clk 0:00:04]} 32. Rf7 {[%clk 0:00:36]}  Nd8 {[%clk 0:00:05]} 33. Rd7 {[%clk 0:00:35]}  Bf6 {[%clk 0:00:05]} 34. Nxa5 {[%clk 0:00:33]}  Kg6 {[%clk 0:00:04]} 35. Nxb7 {[%clk 0:00:32]}  Nc6 {[%clk 0:00:05]} 36. a5 {[%clk 0:00:31]}  Ne5 {[%clk 0:00:04]} 37. Rd6 {[%clk 0:00:29]}  Kf5 {[%clk 0:00:04]} 38. a6 {[%clk 0:00:29]}  Be7 {[%clk 0:00:04]} 39. a7 {[%clk 0:00:28]}  Bxd6 {[%clk 0:00:04]} 40. Nxd6+ {[%clk 0:00:27]}  Kg4 {[%clk 0:00:03]} 41. a8=Q {[%clk 0:00:27]}  Nf3 {[%clk 0:00:03]} 42. Qe4+ {[%clk 0:00:27]}  Kh3 {[%clk 0:00:02]} 43. Qxf3 {[%clk 0:00:26]} 1-0


[Site "https://www.chess.com"]

[Event "Titled Tuesday Blitz July 20 2021"]
[White "GrafLermontov"]
[Black "Jary, Sergey"]
[BlackFideId "14110350"]
[WhiteElo "2554"]
[BlackElo "2260"]
[Result "1-0"]
[Round "08"]
[TimeControl "180+1"]
[Date "2021.07.21"]
[WhiteClock "0:00:33"]
[BlackClock "0:00:01"]

1. d4 {[%clk 0:03:00]}  Nf6 {[%clk 0:00:48]} 2. c4 {[%clk 0:02:59]}  g6 {[%clk 0:00:48]} 3. Nc3 {[%clk 0:02:59]}  d5 {[%clk 0:00:49]} 4. cxd5 {[%clk 0:03:00]}  Nxd5 {[%clk 0:00:49]} 5. e4 {[%clk 0:03:01]}  Nb6 {[%clk 0:00:49]} 6. Nf3 {[%clk 0:03:00]}  Bg7 {[%clk 0:00:50]} 7. Be3 {[%clk 0:03:00]}  O-O {[%clk 0:00:50]} 8. Be2 {[%clk 0:03:01]}  Bg4 {[%clk 0:00:50]} 9. Qd2 {[%clk 0:02:56]}  Nc6 {[%clk 0:00:49]} 10. d5 {[%clk 0:02:49]}  Bxf3 {[%clk 0:00:49]} 11. gxf3 {[%clk 0:02:50]}  Ne5 {[%clk 0:00:49]} 12. b3 {[%clk 0:02:43]}  c6 {[%clk 0:00:48]} 13. f4 {[%clk 0:02:33]}  Ned7 {[%clk 0:00:48]} 14. dxc6 {[%clk 0:02:32]}  bxc6 {[%clk 0:00:48]} 15. Rd1 {[%clk 0:02:31]}  Nf6 {[%clk 0:00:47]} 16. Bf3 {[%clk 0:02:24]}  Qxd2+ {[%clk 0:00:46]} 17. Kxd2 {[%clk 0:02:23]}  e5 {[%clk 0:00:43]} 18. Kc2 {[%clk 0:02:15]}  exf4 {[%clk 0:00:41]} 19. Bxf4 {[%clk 0:02:16]}  Rfe8 {[%clk 0:00:40]} 20. Rhe1 {[%clk 0:02:12]}  Nfd7 {[%clk 0:00:39]} 21. Bg2 {[%clk 0:02:02]}  h5 {[%clk 0:00:37]} 22. a4 {[%clk 0:01:55]}  Nc5 {[%clk 0:00:24]} 23. a5 {[%clk 0:01:42]}  Nbd7 {[%clk 0:00:23]} 24. b4 {[%clk 0:01:40]}  Ne6 {[%clk 0:00:23]} 25. Bg3 {[%clk 0:01:28]}  Ne5 {[%clk 0:00:18]} 26. f4 {[%clk 0:01:26]}  Ng4 {[%clk 0:00:18]} 27. h3 {[%clk 0:01:10]}  Nf6 {[%clk 0:00:16]} 28. e5 {[%clk 0:01:10]}  Nd5 {[%clk 0:00:14]} 29. Bxd5 {[%clk 0:01:04]}  cxd5 {[%clk 0:00:13]} 30. Nxd5 {[%clk 0:01:05]}  Rac8+ {[%clk 0:00:14]} 31. Kb3 {[%clk 0:01:06]}  Rb8 {[%clk 0:00:06]} 32. Bf2 {[%clk 0:00:49]}  a6 {[%clk 0:00:05]} 33. Be3 {[%clk 0:00:49]}  Kh8 {[%clk 0:00:05]} 34. Nb6 {[%clk 0:00:48]}  Bf8 {[%clk 0:00:04]} 35. Rd7 {[%clk 0:00:47]}  Kg8 {[%clk 0:00:04]} 36. Rg1 {[%clk 0:00:44]}  Ng7 {[%clk 0:00:04]} 37. Bc5 {[%clk 0:00:43]}  Nf5 {[%clk 0:00:04]} 38. Bxf8 {[%clk 0:00:42]}  Rxf8 {[%clk 0:00:03]} 39. Rc1 {[%clk 0:00:39]}  Rfd8 {[%clk 0:00:03]} 40. Rcc7 {[%clk 0:00:38]}  Rxd7 {[%clk 0:00:03]} 41. Nxd7 {[%clk 0:00:38]}  Rd8 {[%clk 0:00:01]} 42. Nf6+ {[%clk 0:00:38]}  Kg7 {[%clk 0:00:01]} 43. Rd7 {[%clk 0:00:33]}  Nh4 {[%clk 0:00:01]} 44. Rxd8 {[%clk 0:00:33]} 1-0


[Site "https://www.chess.com"]

[Event "Titled Tuesday Blitz July 20 2021"]
[White "Guimaraes, Wagner Peixoto"]
[Black "Odinaev, Timur"]
[WhiteFideId "2100940"]
[BlackFideId "4163770"]
[WhiteElo "2245"]
[BlackElo "2306"]
[Result "1-0"]
[Round "08"]
[TimeControl "180+1"]
[Date "2021.07.21"]
[WhiteClock "0:00:03"]
[BlackClock "0:00:11"]

1. e4 {[%clk 0:03:00]}  g6 {[%clk 0:02:59]} 2. d4 {[%clk 0:02:59]}  Bg7 {[%clk 0:03:00]} 3. Nc3 {[%clk 0:02:53]}  d6 {[%clk 0:03:00]} 4. h3 {[%clk 0:02:52]}  a6 {[%clk 0:03:00]} 5. a4 {[%clk 0:02:51]}  Nf6 {[%clk 0:02:59]} 6. Be2 {[%clk 0:02:49]}  Nc6 {[%clk 0:02:59]} 7. Nf3 {[%clk 0:02:48]}  O-O {[%clk 0:02:59]} 8. Be3 {[%clk 0:02:47]}  h6 {[%clk 0:02:59]} 9. Qd2 {[%clk 0:02:46]}  Kh7 {[%clk 0:03:00]} 10. Rd1 {[%clk 0:02:38]}  e6 {[%clk 0:03:00]} 11. Qc1 {[%clk 0:02:36]}  b6 {[%clk 0:03:00]} 12. e5 {[%clk 0:02:33]}  Nd5 {[%clk 0:02:58]} 13. Nxd5 {[%clk 0:02:32]}  exd5 {[%clk 0:02:59]} 14. h4 {[%clk 0:02:28]}  dxe5 {[%clk 0:02:57]} 15. dxe5 {[%clk 0:02:27]}  Nxe5 {[%clk 0:02:57]} 16. Nxe5 {[%clk 0:02:22]}  Bxe5 {[%clk 0:02:57]} 17. Bxh6 {[%clk 0:02:21]}  Re8 {[%clk 0:02:58]} 18. h5 {[%clk 0:02:16]}  g5 {[%clk 0:02:43]} 19. Bxg5 {[%clk 0:02:09]}  Bf6 {[%clk 0:02:44]} 20. Bf4 {[%clk 0:01:36]}  Qe7 {[%clk 0:02:24]} 21. Qd2 {[%clk 0:01:23]}  Bxb2 {[%clk 0:02:22]} 22. Kf1 {[%clk 0:01:21]}  Bf5 {[%clk 0:02:15]} 23. Bd3 {[%clk 0:01:17]}  Bxd3+ {[%clk 0:02:04]} 24. Qxd3+ {[%clk 0:01:17]}  Kh8 {[%clk 0:02:05]} 25. c3 {[%clk 0:01:12]}  Rad8 {[%clk 0:01:45]} 26. Be3 {[%clk 0:01:09]}  c5 {[%clk 0:01:43]} 27. Qd2 {[%clk 0:01:04]}  d4 {[%clk 0:01:37]} 28. Bg5 {[%clk 0:00:55]}  f6 {[%clk 0:00:40]} 29. Qxb2 {[%clk 0:00:21]}  dxc3 {[%clk 0:00:40]} 30. Qc2 {[%clk 0:00:16]}  Rxd1+ {[%clk 0:00:40]} 31. Qxd1 {[%clk 0:00:16]}  fxg5 {[%clk 0:00:41]} 32. Rh3 {[%clk 0:00:14]}  Qe5 {[%clk 0:00:35]} 33. Re3 {[%clk 0:00:12]}  Qb8 {[%clk 0:00:31]} 34. Rxc3 {[%clk 0:00:10]}  Qd8 {[%clk 0:00:31]} 35. Rd3 {[%clk 0:00:08]}  Qe7 {[%clk 0:00:31]} 36. Qa1+ {[%clk 0:00:08]}  Qe5 {[%clk 0:00:32]} 37. Qd1 {[%clk 0:00:07]}  b5 {[%clk 0:00:30]} 38. axb5 {[%clk 0:00:06]}  axb5 {[%clk 0:00:30]} 39. g3 {[%clk 0:00:07]}  Qe4 {[%clk 0:00:29]} 40. f3 {[%clk 0:00:05]}  Qc4 {[%clk 0:00:27]} 41. Qa1+ {[%clk 0:00:05]}  Kh7 {[%clk 0:00:28]} 42. Qa7+ {[%clk 0:00:02]}  Kh6 {[%clk 0:00:26]} 43. Qd7 {[%clk 0:00:03]}  Qc1+ {[%clk 0:00:25]} 44. Rd1 {[%clk 0:00:03]}  Qc4+ {[%clk 0:00:24]} 45. Kg1 {[%clk 0:00:03]}  Qe2 {[%clk 0:00:12]} 46. Rd6+ {[%clk 0:00:03]}  Re6 {[%clk 0:00:10]} 47. Rxe6+ {[%clk 0:00:02]}  Qxe6 {[%clk 0:00:10]} 48. Qxe6+ {[%clk 0:00:03]}  Kxh5 {[%clk 0:00:11]} 49. Qb3 {[%clk 0:00:03]}  Kg6 {[%clk 0:00:11]} 50. Qxb5 {[%clk 0:00:03]}  Kh5 {[%clk 0:00:11]} 51. Qxc5 {[%clk 0:00:03]} 1-0


[Site "https://www.chess.com"]

[Event "Titled Tuesday Blitz July 20 2021"]
[White "Iskusnyh, Sergei"]
[Black "Chigaev, Maksim"]
[WhiteFideId "4120027"]
[BlackFideId "4108116"]
[WhiteElo "2492"]
[BlackElo "2646"]
[Result "1-0"]
[Round "08"]
[TimeControl "180+1"]
[Date "2021.07.20"]
[WhiteClock "0:00:06"]
[BlackClock "0:00:02"]

1. d4 {[%clk 0:03:00]}  Nf6 {[%clk 0:02:59]} 2. c4 {[%clk 0:03:01]}  g6 {[%clk 0:02:59]} 3. g3 {[%clk 0:03:01]}  Bg7 {[%clk 0:02:57]} 4. Bg2 {[%clk 0:03:02]}  c5 {[%clk 0:02:58]} 5. dxc5 {[%clk 0:03:00]}  Qa5+ {[%clk 0:02:55]} 6. Nc3 {[%clk 0:03:00]}  Qxc5 {[%clk 0:02:54]} 7. Bd2 {[%clk 0:03:00]}  Nc6 {[%clk 0:02:52]} 8. Rc1 {[%clk 0:02:55]}  O-O {[%clk 0:02:52]} 9. Nf3 {[%clk 0:02:51]}  Qh5 {[%clk 0:02:52]} 10. O-O {[%clk 0:02:38]}  d6 {[%clk 0:02:48]} 11. Re1 {[%clk 0:02:24]}  Bh3 {[%clk 0:02:41]} 12. Bh1 {[%clk 0:02:24]}  Rac8 {[%clk 0:02:29]} 13. Qa4 {[%clk 0:02:13]}  a6 {[%clk 0:02:14]} 14. Bg5 {[%clk 0:02:01]}  Rfe8 {[%clk 0:01:57]} 15. Nd5 {[%clk 0:01:31]}  Nxd5 {[%clk 0:01:50]} 16. cxd5 {[%clk 0:01:31]}  Nd4 {[%clk 0:01:43]} 17. Nxd4 {[%clk 0:00:47]}  Qxg5 {[%clk 0:01:35]} 18. e3 {[%clk 0:00:47]}  b5 {[%clk 0:01:28]} 19. Qb4 {[%clk 0:00:40]}  a5 {[%clk 0:01:07]} 20. Qd2 {[%clk 0:00:36]}  b4 {[%clk 0:00:54]} 21. Nc6 {[%clk 0:00:35]}  h5 {[%clk 0:00:53]} 22. Rc4 {[%clk 0:00:35]}  Kh7 {[%clk 0:00:47]} 23. Rec1 {[%clk 0:00:35]}  Qf6 {[%clk 0:00:46]} 24. R1c2 {[%clk 0:00:32]}  Ra8 {[%clk 0:00:44]} 25. Be4 {[%clk 0:00:29]}  Bc8 {[%clk 0:00:42]} 26. Qd1 {[%clk 0:00:27]}  Kg8 {[%clk 0:00:36]} 27. Nd4 {[%clk 0:00:25]}  Bg4 {[%clk 0:00:28]} 28. Bf3 {[%clk 0:00:23]}  Bh3 {[%clk 0:00:25]} 29. Rc7 {[%clk 0:00:22]}  h4 {[%clk 0:00:25]} 30. Bg2 {[%clk 0:00:20]}  Bxg2 {[%clk 0:00:22]} 31. Kxg2 {[%clk 0:00:20]}  a4 {[%clk 0:00:16]} 32. Qf3 {[%clk 0:00:20]}  Qxf3+ {[%clk 0:00:09]} 33. Kxf3 {[%clk 0:00:20]}  hxg3 {[%clk 0:00:09]} 34. hxg3 {[%clk 0:00:19]}  Bxd4 {[%clk 0:00:09]} 35. exd4 {[%clk 0:00:19]}  Ra5 {[%clk 0:00:10]} 36. Ke4 {[%clk 0:00:18]}  f5+ {[%clk 0:00:09]} 37. Kf4 {[%clk 0:00:17]}  Rxd5 {[%clk 0:00:10]} 38. R2c4 {[%clk 0:00:16]}  Kf7 {[%clk 0:00:10]} 39. Rxb4 {[%clk 0:00:16]}  Kf6 {[%clk 0:00:08]} 40. Rxa4 {[%clk 0:00:16]}  g5+ {[%clk 0:00:07]} 41. Kf3 {[%clk 0:00:16]}  g4+ {[%clk 0:00:07]} 42. Kg2 {[%clk 0:00:16]}  Rh8 {[%clk 0:00:07]} 43. b3 {[%clk 0:00:14]}  Rb5 {[%clk 0:00:03]} 44. Rac4 {[%clk 0:00:13]}  Ra5 {[%clk 0:00:02]} 45. a4 {[%clk 0:00:12]}  Rd5 {[%clk 0:00:03]} 46. b4 {[%clk 0:00:11]}  e5 {[%clk 0:00:03]} 47. dxe5+ {[%clk 0:00:11]}  Rxe5 {[%clk 0:00:04]} 48. Rd4 {[%clk 0:00:08]}  Re1 {[%clk 0:00:04]} 49. Rxd6+ {[%clk 0:00:08]}  Kg5 {[%clk 0:00:04]} 50. Rg7+ {[%clk 0:00:08]}  Kh5 {[%clk 0:00:05]} 51. b5 {[%clk 0:00:07]}  Rc8 {[%clk 0:00:04]} 52. Rc6 {[%clk 0:00:06]}  Rd8 {[%clk 0:00:04]} 53. Rh7+ {[%clk 0:00:06]}  Kg5 {[%clk 0:00:04]} 54. Rg7+ {[%clk 0:00:06]}  Kh5 {[%clk 0:00:04]} 55. Rgg6 {[%clk 0:00:06]}  Rh8 {[%clk 0:00:02]} 56. b6 {[%clk 0:00:06]} 1-0


[Site "https://www.chess.com"]

[Event "Titled Tuesday Blitz July 20 2021"]
[White "Ivanov, Mike"]
[Black "Peralta, Eduardo"]
[WhiteFideId "2613158"]
[BlackFideId "3700062"]
[WhiteElo "2197"]
[BlackElo "2205"]
[Result "0-1"]
[Round "08"]
[TimeControl "180+1"]
[Date "2021.07.21"]
[WhiteClock "0:00:46"]
[BlackClock "0:01:48"]

1. e4 {[%clk 0:03:00]}  c5 {[%clk 0:02:59]} 2. Nf3 {[%clk 0:03:01]}  Nc6 {[%clk 0:03:00]} 3. Bb5 {[%clk 0:03:00]}  Nf6 {[%clk 0:03:00]} 4. e5 {[%clk 0:03:00]}  Nd5 {[%clk 0:02:53]} 5. Nc3 {[%clk 0:03:00]}  Nxc3 {[%clk 0:02:50]} 6. dxc3 {[%clk 0:03:00]}  g6 {[%clk 0:02:43]} 7. Qd5 {[%clk 0:02:50]}  Qb6 {[%clk 0:02:39]} 8. Bc4 {[%clk 0:02:49]}  e6 {[%clk 0:02:37]} 9. Qe4 {[%clk 0:02:48]}  Bg7 {[%clk 0:02:35]} 10. h4 {[%clk 0:02:42]}  Nxe5 {[%clk 0:02:19]} 11. Nxe5 {[%clk 0:02:34]}  d5 {[%clk 0:02:19]} 12. Qe2 {[%clk 0:01:39]}  dxc4 {[%clk 0:02:18]} 13. Nxc4 {[%clk 0:01:39]}  Qc6 {[%clk 0:02:16]} 14. Bf4 {[%clk 0:01:37]}  O-O {[%clk 0:02:15]} 15. O-O-O {[%clk 0:01:35]}  e5 {[%clk 0:02:09]} 16. Nxe5 {[%clk 0:00:56]}  Qe6 {[%clk 0:02:09]} 17. Qc4 {[%clk 0:00:47]}  Bxe5 {[%clk 0:02:04]} 18. Qxe6 {[%clk 0:00:45]}  Bxf4+ {[%clk 0:01:52]} 19. Qe3 {[%clk 0:00:45]}  Bxe3+ {[%clk 0:01:53]} 20. fxe3 {[%clk 0:00:46]}  Be6 {[%clk 0:01:52]} 21. h5 {[%clk 0:00:46]}  Rfd8 {[%clk 0:01:48]} 0-1


[Site "https://www.chess.com"]

[Event "Titled Tuesday Blitz July 20 2021"]
[White "Jarovinsky, Alexey"]
[Black "Vukovic, Zdravko"]
[WhiteFideId "14115131"]
[BlackFideId "900877"]
[WhiteElo "2446"]
[BlackElo "2595"]
[Result "1-0"]
[Round "08"]
[TimeControl "180+1"]
[Date "2021.07.20"]
[WhiteClock "0:00:11"]
[BlackClock "0:00:31"]

1. Nc3 {[%clk 0:03:00]}  d5 {[%clk 0:02:57]} 2. e4 {[%clk 0:03:00]}  dxe4 {[%clk 0:02:56]} 3. Nxe4 {[%clk 0:03:00]}  Nf6 {[%clk 0:02:57]} 4. d3 {[%clk 0:03:00]}  Nxe4 {[%clk 0:02:57]} 5. dxe4 {[%clk 0:03:01]}  Qxd1+ {[%clk 0:02:57]} 6. Kxd1 {[%clk 0:03:01]}  Nc6 {[%clk 0:02:57]} 7. Be3 {[%clk 0:02:59]}  g6 {[%clk 0:02:57]} 8. c3 {[%clk 0:02:59]}  Bg7 {[%clk 0:02:57]} 9. Nf3 {[%clk 0:02:50]}  Bg4 {[%clk 0:02:55]} 10. Kc2 {[%clk 0:02:45]}  O-O-O {[%clk 0:02:43]} 11. Ng5 {[%clk 0:02:28]}  Rdf8 {[%clk 0:02:29]} 12. h3 {[%clk 0:02:22]}  Bd7 {[%clk 0:02:27]} 13. Bc4 {[%clk 0:02:05]}  Ne5 {[%clk 0:02:19]} 14. Bb3 {[%clk 0:02:02]}  h6 {[%clk 0:02:17]} 15. Nf3 {[%clk 0:01:54]}  Nxf3 {[%clk 0:02:17]} 16. gxf3 {[%clk 0:01:54]}  f5 {[%clk 0:01:49]} 17. Rag1 {[%clk 0:01:52]}  g5 {[%clk 0:01:45]} 18. h4 {[%clk 0:01:46]}  fxe4 {[%clk 0:01:44]} 19. hxg5 {[%clk 0:01:44]}  hxg5 {[%clk 0:01:40]} 20. Rxh8 {[%clk 0:01:43]}  Bxh8 {[%clk 0:01:40]} 21. fxe4 {[%clk 0:01:38]}  g4 {[%clk 0:01:37]} 22. Bc4 {[%clk 0:01:29]}  Bf6 {[%clk 0:01:31]} 23. Rh1 {[%clk 0:01:16]}  a6 {[%clk 0:01:20]} 24. Be2 {[%clk 0:01:07]}  Rh8 {[%clk 0:01:17]} 25. Rxh8+ {[%clk 0:01:04]}  Bxh8 {[%clk 0:01:17]} 26. Bd4 {[%clk 0:00:58]}  e5 {[%clk 0:01:07]} 27. Be3 {[%clk 0:00:56]}  Bf6 {[%clk 0:01:06]} 28. Bc4 {[%clk 0:00:48]}  Kd8 {[%clk 0:01:06]} 29. b3 {[%clk 0:00:43]}  Ke7 {[%clk 0:01:01]} 30. a4 {[%clk 0:00:41]}  Be6 {[%clk 0:00:57]} 31. Bxe6 {[%clk 0:00:37]}  Kxe6 {[%clk 0:00:57]} 32. Kd3 {[%clk 0:00:27]}  b5 {[%clk 0:00:57]} 33. axb5 {[%clk 0:00:23]}  axb5 {[%clk 0:00:57]} 34. c4 {[%clk 0:00:24]}  c6 {[%clk 0:00:57]} 35. cxb5 {[%clk 0:00:20]}  cxb5 {[%clk 0:00:57]} 36. Bc5 {[%clk 0:00:19]}  Kd7 {[%clk 0:00:55]} 37. Ke2 {[%clk 0:00:19]}  Kc6 {[%clk 0:00:55]} 38. Be3 {[%clk 0:00:18]}  Kd6 {[%clk 0:00:54]} 39. Kf1 {[%clk 0:00:18]}  Bh4 {[%clk 0:00:53]} 40. Kg2 {[%clk 0:00:18]}  Ke6 {[%clk 0:00:53]} 41. Bc5 {[%clk 0:00:17]}  Kf6 {[%clk 0:00:52]} 42. Kf1 {[%clk 0:00:17]}  Ke6 {[%clk 0:00:52]} 43. Ke2 {[%clk 0:00:17]}  Kd7 {[%clk 0:00:51]} 44. Be3 {[%clk 0:00:16]}  Kc6 {[%clk 0:00:51]} 45. f3 {[%clk 0:00:15]}  gxf3+ {[%clk 0:00:47]} 46. Kxf3 {[%clk 0:00:16]}  Be1 {[%clk 0:00:44]} 47. Kg4 {[%clk 0:00:16]}  Bc3 {[%clk 0:00:43]} 48. Kf5 {[%clk 0:00:16]}  Bd4 {[%clk 0:00:44]} 49. Bd2 {[%clk 0:00:13]}  Kc5 {[%clk 0:00:42]} 50. Ba5 {[%clk 0:00:13]}  Ba1 {[%clk 0:00:35]} 51. Be1 {[%clk 0:00:11]}  Kd4 {[%clk 0:00:32]} 52. Bg3 {[%clk 0:00:10]}  Kc5 {[%clk 0:00:30]} 53. Bxe5 {[%clk 0:00:09]}  Bd4 {[%clk 0:00:30]} 54. Bxd4+ {[%clk 0:00:09]}  Kxd4 {[%clk 0:00:30]} 55. e5 {[%clk 0:00:10]}  Kd5 {[%clk 0:00:31]} 56. e6 {[%clk 0:00:10]}  Kd6 {[%clk 0:00:31]} 57. Kf6 {[%clk 0:00:11]} 1-0


[Site "https://www.chess.com"]

[Event "Titled Tuesday Blitz July 20 2021"]
[White "Kamsky, Gata"]
[Black "Timmermans, Mark"]
[WhiteFideId "2000024"]
[BlackFideId "1026399"]
[WhiteElo "2644"]
[BlackElo "2460"]
[Result "0-1"]
[Round "08"]
[TimeControl "180+1"]
[Date "2021.07.20"]
[WhiteClock "0:00:07"]
[BlackClock "0:00:29"]

1. e4 {[%clk 0:03:00]}  e5 {[%clk 0:02:59]} 2. Nf3 {[%clk 0:03:00]}  Nc6 {[%clk 0:03:00]} 3. Bb5 {[%clk 0:02:59]}  f5 {[%clk 0:03:00]} 4. Nc3 {[%clk 0:02:57]}  fxe4 {[%clk 0:02:59]} 5. Nxe4 {[%clk 0:02:57]}  d5 {[%clk 0:03:00]} 6. Nxe5 {[%clk 0:02:55]}  dxe4 {[%clk 0:03:01]} 7. Nxc6 {[%clk 0:02:55]}  Qg5 {[%clk 0:03:01]} 8. Qe2 {[%clk 0:02:53]}  Nf6 {[%clk 0:03:01]} 9. f4 {[%clk 0:02:52]}  Qxf4 {[%clk 0:03:01]} 10. d4 {[%clk 0:02:52]}  Qh4+ {[%clk 0:02:59]} 11. g3 {[%clk 0:02:52]}  Qh3 {[%clk 0:03:00]} 12. Ne5+ {[%clk 0:02:50]}  c6 {[%clk 0:03:00]} 13. Bc4 {[%clk 0:02:41]}  Be6 {[%clk 0:03:00]} 14. Bg5 {[%clk 0:02:31]}  O-O-O {[%clk 0:03:00]} 15. O-O-O {[%clk 0:02:30]}  Bd6 {[%clk 0:03:00]} 16. Bxe6+ {[%clk 0:02:20]}  Qxe6 {[%clk 0:03:01]} 17. Nc4 {[%clk 0:02:20]}  Bc7 {[%clk 0:02:59]} 18. Kb1 {[%clk 0:02:10]}  Rhe8 {[%clk 0:02:44]} 19. Rhf1 {[%clk 0:02:08]}  Rd7 {[%clk 0:02:41]} 20. Bxf6 {[%clk 0:02:07]}  gxf6 {[%clk 0:02:42]} 21. Ne3 {[%clk 0:02:06]}  Rg7 {[%clk 0:02:40]} 22. Qh5 {[%clk 0:02:02]}  Rh8 {[%clk 0:02:27]} 23. Rf5 {[%clk 0:01:55]}  Bd8 {[%clk 0:02:23]} 24. Rdf1 {[%clk 0:01:51]}  Rg5 {[%clk 0:02:18]} 25. Rxg5 {[%clk 0:01:51]}  fxg5 {[%clk 0:02:19]} 26. Qf7 {[%clk 0:01:48]}  Qxf7 {[%clk 0:02:12]} 27. Rxf7 {[%clk 0:01:48]}  h5 {[%clk 0:02:13]} 28. c3 {[%clk 0:01:36]}  h4 {[%clk 0:02:14]} 29. Nf5 {[%clk 0:01:22]}  Bc7 {[%clk 0:01:55]} 30. gxh4 {[%clk 0:01:20]}  gxh4 {[%clk 0:01:55]} 31. h3 {[%clk 0:01:20]}  Kb8 {[%clk 0:01:46]} 32. Re7 {[%clk 0:01:18]}  Rf8 {[%clk 0:01:44]} 33. Nxh4 {[%clk 0:01:17]}  Bd8 {[%clk 0:01:35]} 34. Rxe4 {[%clk 0:01:16]}  Rh8 {[%clk 0:01:35]} 35. Ng6 {[%clk 0:01:06]}  Rxh3 {[%clk 0:01:36]} 36. Re8 {[%clk 0:01:05]}  Kc7 {[%clk 0:01:34]} 37. Nf4 {[%clk 0:01:02]}  Rh2 {[%clk 0:01:27]} 38. Rf8 {[%clk 0:00:56]}  Kd7 {[%clk 0:01:17]} 39. Rf7+ {[%clk 0:00:56]}  Kc8 {[%clk 0:01:13]} 40. Ne6 {[%clk 0:00:55]}  Bb6 {[%clk 0:01:11]} 41. a4 {[%clk 0:00:47]}  a5 {[%clk 0:01:06]} 42. Rg7 {[%clk 0:00:42]}  Re2 {[%clk 0:01:05]} 43. Nf4 {[%clk 0:00:41]}  Re3 {[%clk 0:01:04]} 44. Kc2 {[%clk 0:00:40]}  Bc7 {[%clk 0:01:00]} 45. Nd3 {[%clk 0:00:39]}  Bd6 {[%clk 0:00:59]} 46. Rg8+ {[%clk 0:00:31]}  Kc7 {[%clk 0:00:58]} 47. Ra8 {[%clk 0:00:30]}  b6 {[%clk 0:00:46]} 48. Ra7+ {[%clk 0:00:30]}  Kc8 {[%clk 0:00:46]} 49. Rf7 {[%clk 0:00:29]}  Re2+ {[%clk 0:00:42]} 50. Kb3 {[%clk 0:00:24]}  Rd2 {[%clk 0:00:42]} 51. Nf2 {[%clk 0:00:19]}  Bc7 {[%clk 0:00:33]} 52. Rf3 {[%clk 0:00:08]}  Re2 {[%clk 0:00:32]} 53. Nd3 {[%clk 0:00:07]}  Bd6 {[%clk 0:00:30]} 54. Kc4 {[%clk 0:00:07]}  Rd2 {[%clk 0:00:29]} 0-1


[Site "https://www.chess.com"]